[Event "Late-Titled-Tuesday-Blitz-June-25-2024"]
[Site "Chess.com"]
[Date "2024.06.25"]
[Round "1"]
[White "tdf98pantani"]
[Black "2008king"]
[Result "1-0"]
[WhiteElo "2679"]
[BlackElo "2392"]
[TimeControl "180+1"]
[EndTime "14:06:55 PDT"]
[Termination "tdf98pantani won by checkmate"]

1. d4 {[%clk 0:02:49.8]} 1... d5 {[%clk 0:02:59.7]} 2. c4 {[%clk 0:02:49.3]}
2... c6 {[%clk 0:02:59.7]} 3. e3 {[%clk 0:02:49]} 3... Nf6 {[%clk 0:03:00.1]} 4.
Nc3 {[%clk 0:02:48.6]} 4... e6 {[%clk 0:02:58.1]} 5. b3 {[%clk 0:02:45.1]} 5...
Bb4 {[%clk 0:02:56.1]} 6. Bd2 {[%clk 0:02:45]} 6... O-O {[%clk 0:02:55.3]} 7.
Bd3 {[%clk 0:02:44.4]} 7... Nbd7 {[%clk 0:02:54.5]} 8. Nge2 {[%clk 0:02:44.4]}
8... e5 {[%clk 0:02:53.3]} 9. O-O {[%clk 0:02:42.3]} 9... e4 {[%clk 0:02:53]}
10. Bc2 {[%clk 0:02:42.2]} 10... Bxc3 {[%clk 0:02:51.4]} 11. Nxc3 {[%clk
0:02:41.5]} 11... Nb6 {[%clk 0:02:50.8]} 12. c5 {[%clk 0:02:36.5]} 12... Nbd7
{[%clk 0:02:50.4]} 13. f3 {[%clk 0:02:37]} 13... Re8 {[%clk 0:02:45]} 14. fxe4
{[%clk 0:02:35.5]} 14... Nxe4 {[%clk 0:02:45.6]} 15. Nxe4 {[%clk 0:02:32.2]}
15... dxe4 {[%clk 0:02:46.5]} 16. Rf4 {[%clk 0:02:17.3]} 16... Nf6 {[%clk
0:02:43.3]} 17. Qe2 {[%clk 0:02:16.7]} 17... Be6 {[%clk 0:02:21]} 18. Raf1
{[%clk 0:02:15.3]} 18... Bd5 {[%clk 0:02:20.6]} 19. g4 {[%clk 0:02:12.6]} 19...
h6 {[%clk 0:02:09.8]} 20. h4 {[%clk 0:02:10.3]} 20... Nh7 {[%clk 0:02:09.7]} 21.
Qf2 {[%clk 0:02:06.5]} 21... f6 {[%clk 0:02:05.8]} 22. Qg2 {[%clk 0:02:00.2]}
22... b6 {[%clk 0:02:05]} 23. Bb4 {[%clk 0:01:58.9]} 23... a5 {[%clk 0:01:53.2]}
24. Be1 {[%clk 0:01:57.5]} 24... bxc5 {[%clk 0:01:48.9]} 25. dxc5 {[%clk
0:01:56.8]} 25... Qe7 {[%clk 0:01:48.8]} 26. Bc3 {[%clk 0:01:36.8]} 26... Qxc5
{[%clk 0:01:41.7]} 27. Bd4 {[%clk 0:01:36.6]} 27... Qe7 {[%clk 0:01:42.4]} 28.
Rf5 {[%clk 0:01:35.7]} 28... Rad8 {[%clk 0:01:39.9]} 29. Bd1 {[%clk 0:01:26]}
29... Qf7 {[%clk 0:01:10.9]} 30. g5 {[%clk 0:01:24.4]} 30... hxg5 {[%clk
0:01:10.9]} 31. hxg5 {[%clk 0:01:24.6]} 31... Qg6 {[%clk 0:01:11.2]} 32. gxf6
{[%clk 0:01:19.6]} 32... Qxg2+ {[%clk 0:01:11.1]} 33. Kxg2 {[%clk 0:01:20]}
33... Nxf6 {[%clk 0:01:11.8]} 34. Rg5 {[%clk 0:01:14.7]} 34... Kf8 {[%clk
0:00:42.9]} 35. Bc5+ {[%clk 0:00:59.3]} 35... Kf7 {[%clk 0:00:23]} 36. Bh5+
{[%clk 0:00:58.9]} 36... Ke6 {[%clk 0:00:23.6]} 37. Bxe8 {[%clk 0:00:58.2]}
37... Nxe8 {[%clk 0:00:24.5]} 38. Rf8 {[%clk 0:00:51.9]} 38... Kd7 {[%clk
0:00:24.1]} 39. Bd4 {[%clk 0:00:49.2]} 39... a4 {[%clk 0:00:23.9]} 40. bxa4
{[%clk 0:00:47.3]} 40... Ra8 {[%clk 0:00:23.7]} 41. Re5 {[%clk 0:00:38.4]} 41...
g6 {[%clk 0:00:14.4]} 42. Bc5 {[%clk 0:00:37.4]} 42... Nc7 {[%clk 0:00:13.3]}
43. Re7# {[%clk 0:00:36.9]} 1-0

[Event "Late-Titled-Tuesday-Blitz-June-25-2024"]
[Site "Chess.com"]
[Date "2024.06.25"]
[Round "1"]
[White "Mikayel99"]
[Black "N_I_Chess"]
[Result "1-0"]
[WhiteElo "2604"]
[BlackElo "2264"]
[TimeControl "180+1"]
[EndTime "14:06:56 PDT"]
[Termination "Mikayel99 won on time"]

1. e4 {[%clk 0:03:00.9]} 1... Nf6 {[%clk 0:02:51.3]} 2. Nc3 {[%clk 0:02:59.2]}
2... d5 {[%clk 0:02:43.9]} 3. exd5 {[%clk 0:02:51.1]} 3... Nxd5 {[%clk
0:02:43.8]} 4. Nxd5 {[%clk 0:02:51.8]} 4... Qxd5 {[%clk 0:02:37.7]} 5. Qf3
{[%clk 0:02:49.4]} 5... c6 {[%clk 0:02:23.5]} 6. Qxd5 {[%clk 0:02:42.8]} 6...
cxd5 {[%clk 0:02:18.6]} 7. Nf3 {[%clk 0:02:43.7]} 7... Nc6 {[%clk 0:02:17.5]} 8.
d4 {[%clk 0:02:42.8]} 8... Bg4 {[%clk 0:02:15.4]} 9. c3 {[%clk 0:02:42.9]} 9...
Bxf3 {[%clk 0:01:56.4]} 10. gxf3 {[%clk 0:02:43.1]} 10... e6 {[%clk 0:01:54.6]}
11. Rg1 {[%clk 0:02:41.6]} 11... g6 {[%clk 0:01:51]} 12. a4 {[%clk 0:02:36.4]}
12... a5 {[%clk 0:01:46.5]} 13. Bf4 {[%clk 0:02:35.3]} 13... Kd7 {[%clk
0:01:41.2]} 14. Bb5 {[%clk 0:02:35]} 14... h5 {[%clk 0:01:36.4]} 15. h3 {[%clk
0:02:32.8]} 15... Bd6 {[%clk 0:01:24.5]} 16. Bg5 {[%clk 0:02:33.4]} 16... Be7
{[%clk 0:01:23.4]} 17. Bf4 {[%clk 0:02:32.7]} 17... Bd6 {[%clk 0:01:23.3]} 18.
Bg5 {[%clk 0:02:33.1]} 18... Be7 {[%clk 0:01:22.9]} 19. Be3 {[%clk 0:02:33]}
19... Bd6 {[%clk 0:01:03.5]} 20. Kd2 {[%clk 0:02:33.1]} 20... Kc7 {[%clk
0:01:03.1]} 21. b3 {[%clk 0:02:29.3]} 21... Ne7 {[%clk 0:01:02.8]} 22. c4 {[%clk
0:02:28.2]} 22... Bb4+ {[%clk 0:00:58.8]} 23. Kd3 {[%clk 0:02:24.7]} 23... Rac8
{[%clk 0:00:46.9]} 24. c5 {[%clk 0:02:21.9]} 24... b6 {[%clk 0:00:11.7]} 25. Bg5
{[%clk 0:02:12.7]} 25... Nc6 {[%clk 0:00:09]} 26. Bf4+ {[%clk 0:01:41.9]} 26...
Kb7 {[%clk 0:00:08.4]} 27. Rac1 {[%clk 0:01:41.5]} 27... bxc5 {[%clk 0:00:07.3]}
28. dxc5 {[%clk 0:01:42.1]} 28... Rhe8 {[%clk 0:00:05.4]} 29. Bd6 {[%clk
0:01:41]} 29... e5 {[%clk 0:00:05.7]} 30. Rc2 {[%clk 0:01:39.3]} 30... Nd4
{[%clk 0:00:05.8]} 31. Bxe8 {[%clk 0:01:33.9]} 31... Nxc2 {[%clk 0:00:04.8]} 32.
Bxf7 {[%clk 0:01:31.6]} 32... Nd4 {[%clk 0:00:04]} 33. Bxd5+ {[%clk 0:01:32.1]}
33... Ka7 {[%clk 0:00:02.7]} 34. Rxg6 {[%clk 0:01:32.5]} 34... Bxc5 {[%clk
0:00:02.7]} 35. Rg7+ {[%clk 0:01:28.1]} 35... Kb6 {[%clk 0:00:03]} 36. Rb7+
{[%clk 0:01:18]} 36... Ka6 {[%clk 0:00:02.5]} 37. Rh7 {[%clk 0:01:18.8]} 37...
Bxd6 {[%clk 0:00:02.6]} 38. Bb7+ {[%clk 0:01:19.2]} 38... Kb6 {[%clk 0:00:02.7]}
39. Bxc8 {[%clk 0:01:20.1]} 39... Nc6 {[%clk 0:00:02.8]} 40. Rh6 {[%clk
0:01:18.9]} 40... Kc5 {[%clk 0:00:02.7]} 41. Rxh5 {[%clk 0:01:17.2]} 41... Nd4
{[%clk 0:00:02.8]} 42. f4 {[%clk 0:01:15.3]} 42... Nxb3 {[%clk 0:00:01.9]} 43.
fxe5 {[%clk 0:01:15.6]} 43... Be7 {[%clk 0:00:02.7]} 44. e6+ {[%clk 0:01:13.9]}
44... Kd6 {[%clk 0:00:02.9]} 45. Rb5 {[%clk 0:01:14.4]} 45... Nc5+ {[%clk
0:00:03.3]} 46. Kc4 {[%clk 0:01:14.3]} 46... Nxa4 {[%clk 0:00:03.5]} 47. Rd5+
{[%clk 0:01:09.9]} 47... Kc6 {[%clk 0:00:03.2]} 48. Bd7+ {[%clk 0:01:10.5]}
48... Kc7 {[%clk 0:00:02.4]} 49. Bxa4 {[%clk 0:01:11.4]} 49... Bd6 {[%clk
0:00:03]} 50. Rxa5 {[%clk 0:01:11.1]} 50... Kd8 {[%clk 0:00:02.9]} 51. Kd5
{[%clk 0:01:10.8]} 51... Ke7 {[%clk 0:00:03.8]} 52. Ra7+ {[%clk 0:01:11]} 52...
Kf6 {[%clk 0:00:04.7]} 53. Kxd6 {[%clk 0:01:11.1]} 1-0

[Event "Late-Titled-Tuesday-Blitz-June-25-2024"]
[Site "Chess.com"]
[Date "2024.06.25"]
[Round "1"]
[White "ValeriyGrinev"]
[Black "TreinadorBR"]
[Result "0-1"]
[WhiteElo "2584"]
[BlackElo "2275"]
[TimeControl "180+1"]
[EndTime "14:06:56 PDT"]
[Termination "TreinadorBR won on time"]

1. d4 {[%clk 0:02:58.5]} 1... d5 {[%clk 0:02:59.2]} 2. c4 {[%clk 0:02:58.2]}
2... c6 {[%clk 0:02:58.9]} 3. e3 {[%clk 0:02:58.4]} 3... Nf6 {[%clk 0:02:59.6]}
4. Bd3 {[%clk 0:02:58.2]} 4... Bg4 {[%clk 0:02:56.1]} 5. Qc2 {[%clk 0:02:57.2]}
5... e6 {[%clk 0:02:52.1]} 6. Nd2 {[%clk 0:02:57.4]} 6... Nbd7 {[%clk
0:02:49.4]} 7. Ngf3 {[%clk 0:02:57.5]} 7... Bd6 {[%clk 0:02:46.8]} 8. b3 {[%clk
0:02:57.5]} 8... O-O {[%clk 0:02:43.1]} 9. Bb2 {[%clk 0:02:57.5]} 9... Qe7
{[%clk 0:02:40.6]} 10. Ne5 {[%clk 0:02:57.2]} 10... Bh5 {[%clk 0:02:37.8]} 11.
O-O {[%clk 0:02:56.9]} 11... Bg6 {[%clk 0:02:34.2]} 12. Nxg6 {[%clk 0:02:56.5]}
12... fxg6 {[%clk 0:02:30.5]} 13. f4 {[%clk 0:02:55.9]} 13... Ng4 {[%clk
0:02:21.9]} 14. Rae1 {[%clk 0:02:55.3]} 14... c5 {[%clk 0:02:12.4]} 15. h3
{[%clk 0:02:52.3]} 15... Nh6 {[%clk 0:02:11.3]} 16. Nf3 {[%clk 0:02:51.9]} 16...
Rac8 {[%clk 0:02:05.9]} 17. Qe2 {[%clk 0:02:50.5]} 17... Nf5 {[%clk 0:02:02.2]}
18. Kh2 {[%clk 0:02:44.9]} 18... Nxe3 {[%clk 0:01:58.2]} 19. Rf2 {[%clk
0:02:33.6]} 19... Bxf4+ {[%clk 0:01:57.2]} 20. g3 {[%clk 0:02:33.7]} 20... Bh6
{[%clk 0:01:52.1]} 21. cxd5 {[%clk 0:02:32.8]} 21... exd5 {[%clk 0:01:51.3]} 22.
dxc5 {[%clk 0:02:23.3]} 22... Nxc5 {[%clk 0:01:45.5]} 23. Bb1 {[%clk 0:02:22.1]}
23... Ne4 {[%clk 0:01:41.6]} 24. Bxe4 {[%clk 0:02:18.7]} 24... dxe4 {[%clk
0:01:42.5]} 25. Nd4 {[%clk 0:02:14.6]} 25... Rxf2+ {[%clk 0:01:33.3]} 26. Qxf2
{[%clk 0:02:15.5]} 26... Qd6 {[%clk 0:01:33.9]} 27. Rxe3 {[%clk 0:02:09.8]}
27... Bxe3 {[%clk 0:01:32.8]} 28. Qxe3 {[%clk 0:02:10.7]} 28... Rf8 {[%clk
0:01:27.5]} 29. h4 {[%clk 0:02:06.2]} 29... Qf6 {[%clk 0:01:21.3]} 30. Qxe4
{[%clk 0:01:47.1]} 30... Qf1 {[%clk 0:01:15.8]} 31. Qe6+ {[%clk 0:00:31.8]}
31... Kh8 {[%clk 0:01:14]} 32. Nf3 {[%clk 0:00:30.7]} 32... Rxf3 {[%clk
0:01:03.1]} 33. Bd4 {[%clk 0:00:22.5]} 33... Rf8 {[%clk 0:00:54.4]} 34. Qe7
{[%clk 0:00:10.8]} 34... Qf7 {[%clk 0:00:51]} 35. Qe5 {[%clk 0:00:11]} 35... b6
{[%clk 0:00:49.9]} 36. a4 {[%clk 0:00:07.3]} 36... Re8 {[%clk 0:00:50]} 37. Qd6
{[%clk 0:00:04.3]} 37... Re2+ {[%clk 0:00:45.8]} 38. Kg1 {[%clk 0:00:04.5]}
38... Re1+ {[%clk 0:00:44.3]} 39. Kh2 {[%clk 0:00:03.1]} 39... h6 {[%clk
0:00:42.1]} 0-1

[Event "Late-Titled-Tuesday-Blitz-June-25-2024"]
[Site "Chess.com"]
[Date "2024.06.25"]
[Round "1"]
[White "Yarikov_Artem"]
[Black "KaydenTroffChess"]
[Result "0-1"]
[WhiteElo "2476"]
[BlackElo "2835"]
[TimeControl "180+1"]
[EndTime "14:06:57 PDT"]
[Termination "KaydenTroffChess won by resignation"]

1. d4 {[%clk 0:03:00.9]} 1... Nf6 {[%clk 0:02:59.7]} 2. c4 {[%clk 0:03:00.6]}
2... g6 {[%clk 0:03:00.2]} 3. Nc3 {[%clk 0:02:59.7]} 3... d5 {[%clk 0:03:00.5]}
4. cxd5 {[%clk 0:02:59.5]} 4... Nxd5 {[%clk 0:03:01.1]} 5. e4 {[%clk 0:03:00.1]}
5... Nxc3 {[%clk 0:03:01.3]} 6. bxc3 {[%clk 0:03:01]} 6... Bg7 {[%clk
0:03:01.6]} 7. Nf3 {[%clk 0:03:01.1]} 7... c5 {[%clk 0:03:01.9]} 8. Bb5+ {[%clk
0:03:01.6]} 8... Nd7 {[%clk 0:03:01]} 9. O-O {[%clk 0:03:00.2]} 9... O-O {[%clk
0:03:00.8]} 10. Bd3 {[%clk 0:02:54.4]} 10... cxd4 {[%clk 0:02:54.4]} 11. cxd4
{[%clk 0:02:55.3]} 11... Nc5 {[%clk 0:02:52.5]} 12. Bc2 {[%clk 0:02:51.9]} 12...
Bg4 {[%clk 0:02:49.7]} 13. Be3 {[%clk 0:02:51.1]} 13... Ne6 {[%clk 0:02:41.1]}
14. d5 {[%clk 0:02:36.4]} 14... Bxf3 {[%clk 0:02:39.6]} 15. gxf3 {[%clk
0:02:32]} 15... Bxa1 {[%clk 0:02:31]} 16. Qxa1 {[%clk 0:02:25.3]} 16... Ng7
{[%clk 0:02:30.7]} 17. Bh6 {[%clk 0:02:21]} 17... Nh5 {[%clk 0:02:20.1]} 18. Bd1
{[%clk 0:02:11]} 18... Qd7 {[%clk 0:02:03.3]} 19. f4 {[%clk 0:02:07]} 19... Nf6
{[%clk 0:02:03.4]} 20. Bxf8 {[%clk 0:01:42]} 20... Rxf8 {[%clk 0:01:51.1]} 21.
Qe5 {[%clk 0:01:41.5]} 21... Rc8 {[%clk 0:01:34.9]} 22. Bf3 {[%clk 0:01:40]}
22... b6 {[%clk 0:01:15.3]} 23. Rd1 {[%clk 0:01:36.7]} 23... Rc5 {[%clk
0:01:12.8]} 24. Qb8+ {[%clk 0:01:36.2]} 24... Kg7 {[%clk 0:01:12.6]} 25. d6
{[%clk 0:01:22.1]} 25... Rc8 {[%clk 0:01:06.7]} 26. Qxc8 {[%clk 0:00:45.8]}
26... Qxc8 {[%clk 0:01:05.9]} 27. e5 {[%clk 0:00:34.7]} 27... Nh5 {[%clk
0:00:50.7]} 28. d7 {[%clk 0:00:20.5]} 28... Qd8 {[%clk 0:00:50.7]} 29. Bxh5
{[%clk 0:00:19.5]} 29... gxh5 {[%clk 0:00:48.6]} 30. f5 {[%clk 0:00:20.1]} 30...
e6 {[%clk 0:00:46.6]} 31. f6+ {[%clk 0:00:19.5]} 31... Kg6 {[%clk 0:00:46.9]}
32. f4 {[%clk 0:00:18.9]} 32... Kf5 {[%clk 0:00:40.5]} 33. Rd4 {[%clk
0:00:19.4]} 33... b5 {[%clk 0:00:40.3]} 34. Kf2 {[%clk 0:00:19.6]} 34... a5
{[%clk 0:00:40.3]} 35. Ke3 {[%clk 0:00:12.6]} 35... b4 {[%clk 0:00:40]} 36. Rd1
{[%clk 0:00:13.2]} 36... a4 {[%clk 0:00:36.7]} 37. Rd4 {[%clk 0:00:08.3]} 37...
b3 {[%clk 0:00:35.8]} 38. axb3 {[%clk 0:00:08.8]} 38... axb3 {[%clk 0:00:36.4]}
39. Kd2 {[%clk 0:00:09.4]} 39... b2 {[%clk 0:00:34.5]} 40. Kc2 {[%clk
0:00:09.2]} 40... b1=Q+ {[%clk 0:00:35.2]} 41. Kxb1 {[%clk 0:00:08.5]} 41...
Qb6+ {[%clk 0:00:35.9]} 42. Kc2 {[%clk 0:00:06.2]} 42... Qxd4 {[%clk 0:00:36]}
0-1

[Event "Late-Titled-Tuesday-Blitz-June-25-2024"]
[Site "Chess.com"]
[Date "2024.06.25"]
[Round "1"]
[White "Hirna2005"]
[Black "lukas_111111"]
[Result "0-1"]
[WhiteElo "2348"]
[BlackElo "2639"]
[TimeControl "180+1"]
[EndTime "14:06:58 PDT"]
[Termination "lukas_111111 won by resignation"]

1. e4 {[%clk 0:03:00.9]} 1... d6 {[%clk 0:02:43.5]} 2. d4 {[%clk 0:03:00.4]}
2... Nf6 {[%clk 0:02:43.4]} 3. Nc3 {[%clk 0:03:00.6]} 3... Nc6 {[%clk 0:02:44]}
4. Nge2 {[%clk 0:02:57.7]} 4... g6 {[%clk 0:02:39.9]} 5. g3 {[%clk 0:02:57.2]}
5... Bg7 {[%clk 0:02:39.8]} 6. Bg2 {[%clk 0:02:57.3]} 6... O-O {[%clk
0:02:40.4]} 7. O-O {[%clk 0:02:56.4]} 7... e5 {[%clk 0:02:39.6]} 8. Bg5 {[%clk
0:02:51.2]} 8... exd4 {[%clk 0:02:36.2]} 9. Nxd4 {[%clk 0:02:49.8]} 9... Nxd4
{[%clk 0:02:36]} 10. Qxd4 {[%clk 0:02:49.4]} 10... h6 {[%clk 0:02:36.7]} 11. Bd2
{[%clk 0:02:41.8]} 11... Re8 {[%clk 0:02:36]} 12. Qd3 {[%clk 0:02:40.3]} 12...
Bd7 {[%clk 0:02:33.9]} 13. Rae1 {[%clk 0:02:34.6]} 13... Bc6 {[%clk 0:02:31.9]}
14. f4 {[%clk 0:02:26.6]} 14... b5 {[%clk 0:02:20.1]} 15. a3 {[%clk 0:02:24.7]}
15... Qb8 {[%clk 0:02:18.4]} 16. Nd5 {[%clk 0:02:18.3]} 16... Nxd5 {[%clk
0:02:14.7]} 17. exd5 {[%clk 0:02:18]} 17... Qb6+ {[%clk 0:02:07.1]} 18. Be3
{[%clk 0:02:01.4]} 18... Rxe3 {[%clk 0:02:06.4]} 19. Rxe3 {[%clk 0:02:01.6]}
19... Bd7 {[%clk 0:02:04.4]} 20. Kh1 {[%clk 0:01:59.5]} 20... Bxb2 {[%clk
0:02:00.5]} 21. Re7 {[%clk 0:01:54.7]} 21... Bf5 {[%clk 0:01:59.9]} 22. Qe2
{[%clk 0:01:52.8]} 22... Bf6 {[%clk 0:01:57.2]} 23. Re8+ {[%clk 0:01:51.7]}
23... Rxe8 {[%clk 0:01:57.2]} 24. Qxe8+ {[%clk 0:01:51.8]} 24... Kg7 {[%clk
0:01:58.1]} 25. Re1 {[%clk 0:01:48.6]} 25... Qf2 {[%clk 0:01:56.9]} 26. Rf1
{[%clk 0:01:39.1]} 26... Qxc2 {[%clk 0:01:55]} 27. Re1 {[%clk 0:01:10.2]} 27...
Bc3 {[%clk 0:01:42.6]} 28. Qe2 {[%clk 0:01:04.3]} 28... Bxe1 {[%clk 0:01:39.5]}
29. Qxe1 {[%clk 0:01:04.4]} 29... h5 {[%clk 0:01:35.9]} 30. h3 {[%clk
0:00:55.4]} 30... Qc5 {[%clk 0:01:30.3]} 31. Qa1+ {[%clk 0:00:50.5]} 31... Kg8
{[%clk 0:01:29.5]} 32. Kh2 {[%clk 0:00:50.8]} 32... Qf2 {[%clk 0:01:27.6]} 33.
Qf1 {[%clk 0:00:34.4]} 33... Qb2 {[%clk 0:01:22.8]} 34. Kh1 {[%clk 0:00:24.3]}
34... Qxa3 {[%clk 0:01:20.8]} 35. Qxb5 {[%clk 0:00:24.2]} 35... Qxg3 {[%clk
0:01:20]} 36. Qb8+ {[%clk 0:00:21.2]} 36... Kg7 {[%clk 0:01:19.4]} 37. Qxc7
{[%clk 0:00:20.7]} 37... Bxh3 {[%clk 0:01:18.6]} 38. Bxh3 {[%clk 0:00:20.3]}
38... Qxh3+ {[%clk 0:01:18.8]} 39. Kg1 {[%clk 0:00:21.2]} 39... Qg3+ {[%clk
0:01:19.1]} 40. Kh1 {[%clk 0:00:21.5]} 40... Qe1+ {[%clk 0:01:19.5]} 41. Kg2
{[%clk 0:00:20.9]} 41... Qe2+ {[%clk 0:01:19.9]} 42. Kh1 {[%clk 0:00:21]} 42...
Qe4+ {[%clk 0:01:19]} 43. Kh2 {[%clk 0:00:20.1]} 43... Qxf4+ {[%clk 0:01:19.2]}
44. Kh1 {[%clk 0:00:20.4]} 44... Qe4+ {[%clk 0:01:19.1]} 45. Kg1 {[%clk
0:00:20.3]} 45... Qxd5 {[%clk 0:01:18.5]} 46. Qc3+ {[%clk 0:00:21]} 46... Qe5
{[%clk 0:01:18.4]} 47. Qa3 {[%clk 0:00:19.4]} 47... a5 {[%clk 0:01:17.5]} 48.
Kh1 {[%clk 0:00:18.7]} 48... Qd5+ {[%clk 0:01:17]} 49. Kh2 {[%clk 0:00:18.7]}
49... Qe5+ {[%clk 0:01:17.2]} 50. Kh1 {[%clk 0:00:19]} 50... h4 {[%clk
0:01:17.6]} 51. Qf3 {[%clk 0:00:16.2]} 51... Qf5 {[%clk 0:01:15]} 52. Qf2 {[%clk
0:00:15.6]} 52... Qe4+ {[%clk 0:01:13.6]} 53. Kg1 {[%clk 0:00:15.2]} 53... Qg4+
{[%clk 0:01:12.8]} 54. Kh1 {[%clk 0:00:15.5]} 54... a4 {[%clk 0:01:11]} 55. Qb2+
{[%clk 0:00:13.6]} 55... Kg8 {[%clk 0:01:09.3]} 56. Qb8+ {[%clk 0:00:13.3]}
56... Kg7 {[%clk 0:01:09.1]} 57. Qxd6 {[%clk 0:00:13.7]} 57... Qf3+ {[%clk
0:01:07.7]} 58. Kg1 {[%clk 0:00:13.3]} 58... Qg3+ {[%clk 0:01:07.9]} 59. Qxg3
{[%clk 0:00:12.8]} 59... hxg3 {[%clk 0:01:08.8]} 0-1

[Event "Late-Titled-Tuesday-Blitz-June-25-2024"]
[Site "Chess.com"]
[Date "2024.06.25"]
[Round "1"]
[White "TheAlienParty"]
[Black "andrew-blr"]
[Result "0-1"]
[WhiteElo "2327"]
[BlackElo "2625"]
[TimeControl "180+1"]
[EndTime "14:07:04 PDT"]
[Termination "andrew-blr won by resignation"]

1. c4 {[%clk 0:02:55.1]} 1... e5 {[%clk 0:02:59.4]} 2. Nc3 {[%clk 0:02:54.4]}
2... Bb4 {[%clk 0:02:58.5]} 3. Nd5 {[%clk 0:02:51.9]} 3... Bc5 {[%clk
0:02:56.6]} 4. e3 {[%clk 0:02:48.8]} 4... c6 {[%clk 0:02:56.3]} 5. Nc3 {[%clk
0:02:48.3]} 5... d5 {[%clk 0:02:52]} 6. d4 {[%clk 0:02:47.3]} 6... exd4 {[%clk
0:02:50.8]} 7. exd4 {[%clk 0:02:47.2]} 7... Bb4 {[%clk 0:02:50.4]} 8. cxd5
{[%clk 0:02:44.6]} 8... Qxd5 {[%clk 0:02:49.8]} 9. Bd2 {[%clk 0:02:43.3]} 9...
Qe6+ {[%clk 0:02:47.1]} 10. Qe2 {[%clk 0:02:42]} 10... Nf6 {[%clk 0:02:45.1]}
11. Nf3 {[%clk 0:02:41.5]} 11... O-O {[%clk 0:02:44.5]} 12. Qxe6 {[%clk
0:02:40.6]} 12... Bxe6 {[%clk 0:02:44]} 13. Be2 {[%clk 0:02:41]} 13... Nbd7
{[%clk 0:02:35.5]} 14. O-O {[%clk 0:02:39.9]} 14... Rad8 {[%clk 0:02:33.4]} 15.
h3 {[%clk 0:02:38.6]} 15... Nb6 {[%clk 0:02:32.4]} 16. Be3 {[%clk 0:02:37.2]}
16... Bc4 {[%clk 0:02:29.6]} 17. Rfe1 {[%clk 0:02:18.1]} 17... Nfd5 {[%clk
0:02:27]} 18. Nd2 {[%clk 0:02:06.3]} 18... Bxc3 {[%clk 0:02:04.6]} 19. Nxc4
{[%clk 0:02:00.3]} 19... Bxe1 {[%clk 0:02:01.6]} 20. Rxe1 {[%clk 0:01:51.1]}
20... Nxe3 {[%clk 0:01:53]} 21. fxe3 {[%clk 0:01:49.9]} 21... Rfe8 {[%clk
0:01:52.3]} 22. Nxb6 {[%clk 0:01:47.5]} 22... axb6 {[%clk 0:01:51.8]} 23. Kf2
{[%clk 0:01:47]} 23... f5 {[%clk 0:01:46.6]} 24. Bf3 {[%clk 0:01:46.2]} 24...
Kf7 {[%clk 0:01:45.4]} 25. g3 {[%clk 0:01:45.8]} 25... Kf6 {[%clk 0:01:45.4]}
26. Rc1 {[%clk 0:01:45.4]} 26... b5 {[%clk 0:01:44.2]} 27. Rc3 {[%clk
0:01:44.8]} 27... Ra8 {[%clk 0:01:40.6]} 28. a3 {[%clk 0:01:44.5]} 28... Red8
{[%clk 0:01:38.2]} 29. h4 {[%clk 0:01:42.2]} 29... Ra4 {[%clk 0:01:37.3]} 30.
Rb3 {[%clk 0:01:40.4]} 30... Rc4 {[%clk 0:01:34.6]} 31. d5 {[%clk 0:01:28.5]}
31... Rc2+ {[%clk 0:01:28]} 32. Ke1 {[%clk 0:01:27]} 32... Rd6 {[%clk
0:01:11.8]} 33. Rb4 {[%clk 0:01:16.4]} 33... g6 {[%clk 0:01:07.2]} 34. Kf1
{[%clk 0:01:14.3]} 34... h6 {[%clk 0:01:07]} 35. Rb3 {[%clk 0:01:09.6]} 35... g5
{[%clk 0:01:05.4]} 36. hxg5+ {[%clk 0:01:09]} 36... hxg5 {[%clk 0:01:06.3]} 37.
dxc6 {[%clk 0:01:03.2]} 37... bxc6 {[%clk 0:01:05.7]} 38. Ke1 {[%clk 0:01:02.5]}
38... g4 {[%clk 0:01:00.5]} 39. Bd1 {[%clk 0:01:01.8]} 39... Rg2 {[%clk
0:00:59.3]} 40. Be2 {[%clk 0:00:58.9]} 40... Rxg3 {[%clk 0:00:57.5]} 41. a4
{[%clk 0:00:58.6]} 41... bxa4 {[%clk 0:00:56.3]} 42. Ra3 {[%clk 0:00:58.5]}
42... Re6 {[%clk 0:00:50.4]} 43. Kf2 {[%clk 0:00:58.2]} 43... Rh3 {[%clk
0:00:49.6]} 44. Bc4 {[%clk 0:00:58]} 44... Re4 {[%clk 0:00:45.3]} 45. Rxa4
{[%clk 0:00:57.6]} 45... Rf3+ {[%clk 0:00:42.6]} 46. Kg2 {[%clk 0:00:56.9]}
46... Rfxe3 {[%clk 0:00:41.6]} 47. b3 {[%clk 0:00:56.7]} 47... Kg5 {[%clk
0:00:39.1]} 48. Ra6 {[%clk 0:00:56.5]} 48... c5 {[%clk 0:00:36.3]} 49. Rc6
{[%clk 0:00:56.3]} 49... Re5 {[%clk 0:00:36.2]} 50. Kf2 {[%clk 0:00:55.9]} 50...
Rc3 {[%clk 0:00:35.9]} 51. Rc8 {[%clk 0:00:54.2]} 51... Rc2+ {[%clk 0:00:35.9]}
52. Kf1 {[%clk 0:00:51.5]} 52... g3 {[%clk 0:00:36.1]} 53. Bd3 {[%clk
0:00:49.5]} 53... Rf2+ {[%clk 0:00:35]} 54. Kg1 {[%clk 0:00:48.8]} 54... Re1+
{[%clk 0:00:35.9]} 0-1